[Event "Titled Tuesday Blitz August 16 Early 2022"]
[White "Begunov, Konstantin"]
[Black "Kononenko, Dmitry"]
[WhiteFideId "4118510"]
[BlackFideId "14113538"]
[WhiteElo "2262"]
[BlackElo "2129"]
[Result "0-1"]
[Round "01"]
[TimeControl "180+2"]
[Date "2022.08.18"]
[WhiteClock "0:00:00"]
[BlackClock "0:00:00"]

1. d4 {[%clk 0:00:00]}  Nf6 {[%clk 0:00:00]} 2. c4 {[%clk 0:00:00]}  c5 {[%clk 0:00:00]} 3. Nf3 {[%clk 0:00:00]}  cxd4 {[%clk 0:00:00]} 4. Nxd4 {[%clk 0:00:00]}  g6 {[%clk 0:00:00]} 5. Nc3 {[%clk 0:00:00]}  d5 {[%clk 0:00:00]} 6. cxd5 {[%clk 0:00:00]}  Nxd5 {[%clk 0:00:00]} 7. g3 {[%clk 0:00:00]}  Bg7 {[%clk 0:00:00]} 8. Bg2 {[%clk 0:00:00]}  Nxc3 {[%clk 0:00:00]} 9. bxc3 {[%clk 0:00:00]}  O-O {[%clk 0:00:00]} 10. O-O {[%clk 0:00:00]}  Qa5 {[%clk 0:00:00]} 11. Qb3 {[%clk 0:00:00]}  Nd7 {[%clk 0:00:00]} 12. Ba3 {[%clk 0:00:00]}  Re8 {[%clk 0:00:00]} 13. Bb4 {[%clk 0:00:00]}  Qb6 {[%clk 0:00:00]} 14. Rab1 {[%clk 0:00:00]}  Nc5 {[%clk 0:00:00]} 15. Qa3 {[%clk 0:00:00]}  Ne6 {[%clk 0:00:00]} 16. Bxe7 {[%clk 0:00:00]}  Qc7 {[%clk 0:00:00]} 17. Bd6 {[%clk 0:00:00]}  Qd8 {[%clk 0:00:00]} 18. Rfd1 {[%clk 0:00:00]}  Nxd4 {[%clk 0:00:00]} 19. cxd4 {[%clk 0:00:00]}  Rxe2 {[%clk 0:00:00]} 20. Be5 {[%clk 0:00:00]}  Bf5 {[%clk 0:00:00]} 21. Rbc1 {[%clk 0:00:00]}  Bxe5 {[%clk 0:00:00]} 22. dxe5 {[%clk 0:00:00]}  Qb6 {[%clk 0:00:00]} 23. Qc5 {[%clk 0:00:00]}  Qxc5 {[%clk 0:00:00]} 24. Rxc5 {[%clk 0:00:00]}  Rxa2 {[%clk 0:00:00]} 25. Bxb7 {[%clk 0:00:00]}  Re8 {[%clk 0:00:00]} 26. f4 {[%clk 0:00:00]}  a5 {[%clk 0:00:00]} 27. Rc7 {[%clk 0:00:00]}  Be6 {[%clk 0:00:00]} 28. Rdc1 {[%clk 0:00:00]}  a4 {[%clk 0:00:00]} 29. Bc8 {[%clk 0:00:00]}  Bxc8 {[%clk 0:00:00]} 30. Rxc8 {[%clk 0:00:00]}  Rxc8 {[%clk 0:00:00]} 31. Rxc8+ {[%clk 0:00:00]}  Kg7 {[%clk 0:00:00]} 32. Ra8 {[%clk 0:00:00]}  a3 {[%clk 0:00:00]} 33. Ra6 {[%clk 0:00:00]}  Kh6 {[%clk 0:00:00]} 34. Ra7 {[%clk 0:00:00]}  Kh5 {[%clk 0:00:00]} 35. Rxf7 {[%clk 0:00:00]}  Rb2 {[%clk 0:00:00]} 36. Ra7 {[%clk 0:00:00]}  a2 {[%clk 0:00:00]} 37. e6 {[%clk 0:00:00]}  Rb1+ {[%clk 0:00:00]} 38. Kf2 {[%clk 0:00:00]}  a1=Q {[%clk 0:00:00]} 39. Rxa1 {[%clk 0:00:00]}  Rxa1 {[%clk 0:00:00]} 40. Kf3 {[%clk 0:00:00]}  Re1 {[%clk 0:00:00]} 41. g4+ {[%clk 0:00:00]}  Kh6 {[%clk 0:00:00]} 42. f5 {[%clk 0:00:00]}  gxf5 {[%clk 0:00:00]} 43. gxf5 {[%clk 0:00:00]}  Kg5 {[%clk 0:00:00]} 44. e7 {[%clk 0:00:00]}  Rxe7 {[%clk 0:00:00]} 45. f6 {[%clk 0:00:00]}  Kxf6 {[%clk 0:00:00]} 0-1


[Site "https://www.chess.com"]

[Event "Titled Tuesday Blitz August 16 Early 2022"]
[White "Bodnar, Nikolay"]
[Black "Kamsky, Gata"]
[WhiteFideId "14106469"]
[BlackFideId "2000024"]
[WhiteElo "2283"]
[BlackElo "2666"]
[Result "0-1"]
[Round "01"]
[TimeControl "180+1"]
[Date "2022.08.16"]
[WhiteClock "0:00:01"]
[BlackClock "0:00:33"]

1. c4 {[%clk 0:02:55]}  e5 {[%clk 0:02:57]} 2. g3 {[%clk 0:02:55]}  Nc6 {[%clk 0:02:57]} 3. Bg2 {[%clk 0:02:56]}  Bc5 {[%clk 0:02:57]} 4. Nc3 {[%clk 0:02:56]}  Nge7 {[%clk 0:02:55]} 5. e3 {[%clk 0:02:56]}  a6 {[%clk 0:02:55]} 6. Nge2 {[%clk 0:02:56]}  Ba7 {[%clk 0:02:56]} 7. d4 {[%clk 0:02:57]}  d6 {[%clk 0:02:55]} 8. a3 {[%clk 0:02:55]}  O-O {[%clk 0:02:55]} 9. b4 {[%clk 0:02:55]}  Bf5 {[%clk 0:02:36]} 10. O-O {[%clk 0:02:46]}  Qc8 {[%clk 0:02:35]} 11. Re1 {[%clk 0:02:39]}  Bg4 {[%clk 0:02:31]} 12. Qd2 {[%clk 0:02:18]}  Re8 {[%clk 0:02:16]} 13. Kh1 {[%clk 0:02:04]}  Qf5 {[%clk 0:02:11]} 14. e4 {[%clk 0:01:23]}  Qh5 {[%clk 0:02:03]} 15. d5 {[%clk 0:01:24]}  Nd4 {[%clk 0:01:59]} 16. Nxd4 {[%clk 0:01:14]}  Bxd4 {[%clk 0:01:55]} 17. Qd3 {[%clk 0:01:00]}  f5 {[%clk 0:01:47]} 18. Ra2 {[%clk 0:00:44]}  Rf8 {[%clk 0:01:35]} 19. Be3 {[%clk 0:00:19]}  Bxc3 {[%clk 0:01:32]} 20. Qxc3 {[%clk 0:00:19]}  fxe4 {[%clk 0:01:32]} 21. Bxe4 {[%clk 0:00:20]}  Bf3+ {[%clk 0:01:31]} 22. Bxf3 {[%clk 0:00:21]}  Qxf3+ {[%clk 0:01:31]} 23. Kg1 {[%clk 0:00:21]}  b5 {[%clk 0:01:30]} 24. Rd2 {[%clk 0:00:17]}  Rfc8 {[%clk 0:01:12]} 25. Red1 {[%clk 0:00:09]}  h6 {[%clk 0:01:09]} 26. c5 {[%clk 0:00:08]}  Rf8 {[%clk 0:01:05]} 27. Qb3 {[%clk 0:00:04]}  Kh8 {[%clk 0:01:04]} 28. a4 {[%clk 0:00:05]}  Nf5 {[%clk 0:00:56]} 29. Qd3 {[%clk 0:00:03]}  bxa4 {[%clk 0:00:47]} 30. c6 {[%clk 0:00:02]}  Rab8 {[%clk 0:00:44]} 31. Rb2 {[%clk 0:00:02]}  Rb5 {[%clk 0:00:44]} 32. Ba7 {[%clk 0:00:01]}  Qxd3 {[%clk 0:00:43]} 33. Rxd3 {[%clk 0:00:02]}  Ra8 {[%clk 0:00:41]} 34. Be3 {[%clk 0:00:02]}  a5 {[%clk 0:00:42]} 35. Bd2 {[%clk 0:00:01]}  Nd4 {[%clk 0:00:39]} 36. Bc3 {[%clk 0:00:01]}  axb4 {[%clk 0:00:39]} 37. Bxd4 {[%clk 0:00:01]}  Rxd5 {[%clk 0:00:38]} 38. Rxb4 {[%clk 0:00:01]}  Rxd4 {[%clk 0:00:37]} 39. Rbxd4 {[%clk 0:00:01]}  exd4 {[%clk 0:00:37]} 40. Ra3 {[%clk 0:00:02]}  Kg8 {[%clk 0:00:33]} 41. Kf1 {[%clk 0:00:03]}  Kf7 {[%clk 0:00:33]} 42. Ke2 {[%clk 0:00:04]}  Ke6 {[%clk 0:00:34]} 43. Kd3 {[%clk 0:00:04]}  Kd5 {[%clk 0:00:34]} 44. g4 {[%clk 0:00:02]}  g5 {[%clk 0:00:33]} 45. h3 {[%clk 0:00:02]}  Ra6 {[%clk 0:00:33]} 46. Ra1 {[%clk 0:00:02]}  a3 {[%clk 0:00:33]} 47. Ra2 {[%clk 0:00:01]}  Ra4 {[%clk 0:00:33]} 48. f3 {[%clk 0:00:01]}  Kxc6 {[%clk 0:00:33]} 0-1


[Site "https://www.chess.com"]

[Event "Titled Tuesday Blitz August 16 Early 2022"]
[White "Boros, Denes"]
[Black "Melaugh, Shane"]
[WhiteFideId "722340"]
[BlackFideId "2509580"]
[WhiteElo "2464"]
[BlackElo "1946"]
[Result "1-0"]
[Round "01"]
[TimeControl "180+1"]
[Date "2022.08.16"]
[WhiteClock "0:01:36"]
[BlackClock "0:00:11"]

1. e4 {[%clk 0:03:00]}  e6 {[%clk 0:02:57]} 2. b3 {[%clk 0:03:00]}  d5 {[%clk 0:02:56]} 3. Bb2 {[%clk 0:03:00]}  dxe4 {[%clk 0:02:56]} 4. Nc3 {[%clk 0:03:01]}  Nf6 {[%clk 0:02:55]} 5. Qe2 {[%clk 0:03:01]}  c5 {[%clk 0:02:05]} 6. Nxe4 {[%clk 0:03:00]}  Be7 {[%clk 0:02:03]} 7. Nf3 {[%clk 0:02:56]}  Nc6 {[%clk 0:02:03]} 8. O-O-O {[%clk 0:02:54]}  Nxe4 {[%clk 0:02:01]} 9. Qxe4 {[%clk 0:02:55]}  Bf6 {[%clk 0:02:02]} 10. d4 {[%clk 0:02:49]}  O-O {[%clk 0:02:01]} 11. Bd3 {[%clk 0:02:34]}  g6 {[%clk 0:01:59]} 12. dxc5 {[%clk 0:02:32]}  Bxb2+ {[%clk 0:01:59]} 13. Kxb2 {[%clk 0:02:33]}  Qa5 {[%clk 0:01:49]} 14. h4 {[%clk 0:02:30]}  Qxc5 {[%clk 0:01:37]} 15. h5 {[%clk 0:02:30]}  f5 {[%clk 0:01:37]} 16. Qf4 {[%clk 0:02:20]}  Qe7 {[%clk 0:00:45]} 17. hxg6 {[%clk 0:02:16]}  hxg6 {[%clk 0:00:45]} 18. Ng5 {[%clk 0:02:10]}  Qf6+ {[%clk 0:00:45]} 19. Kb1 {[%clk 0:02:09]}  Ne5 {[%clk 0:00:30]} 20. Nh7 {[%clk 0:02:02]}  Qg7 {[%clk 0:00:25]} 21. Nxf8 {[%clk 0:02:01]}  Kxf8 {[%clk 0:00:26]} 22. Bb5 {[%clk 0:01:55]}  Nf7 {[%clk 0:00:21]} 23. Qb4+ {[%clk 0:01:47]}  Kg8 {[%clk 0:00:20]} 24. Be8 {[%clk 0:01:41]}  e5 {[%clk 0:00:13]} 25. Bxf7+ {[%clk 0:01:40]}  Qxf7 {[%clk 0:00:14]} 26. Rd8+ {[%clk 0:01:38]}  Kg7 {[%clk 0:00:15]} 27. Qh4 {[%clk 0:01:37]}  b5 {[%clk 0:00:11]} 28. Qh8# {[%clk 0:01:36]} 1-0


[Site "https://www.chess.com"]

[Event "Titled Tuesday Blitz August 16 Early 2022"]
[White "Bortnyk, Olexandr"]
[Black "Dauner, Benedikt"]
[WhiteFideId "14120828"]
[BlackFideId "16225899"]
[WhiteElo "2723"]
[BlackElo "2256"]
[Result "1-0"]
[Round "01"]
[TimeControl "180+1"]
[Date "2022.08.16"]
[WhiteClock "0:02:03"]
[BlackClock "0:00:03"]

1. d4 {[%clk 0:03:00]}  Nf6 {[%clk 0:02:58]} 2. Nc3 {[%clk 0:03:01]}  d5 {[%clk 0:02:56]} 3. Bf4 {[%clk 0:03:01]}  c5 {[%clk 0:02:56]} 4. e4 {[%clk 0:03:00]}  cxd4 {[%clk 0:02:55]} 5. Qxd4 {[%clk 0:03:01]}  Nc6 {[%clk 0:02:55]} 6. Qa4 {[%clk 0:03:00]}  dxe4 {[%clk 0:02:22]} 7. Nb5 {[%clk 0:03:00]}  e5 {[%clk 0:02:02]} 8. Bxe5 {[%clk 0:03:00]}  Bb4+ {[%clk 0:02:01]} 9. c3 {[%clk 0:02:59]}  O-O {[%clk 0:01:48]} 10. Bxf6 {[%clk 0:02:58]}  Qxf6 {[%clk 0:01:49]} 11. cxb4 {[%clk 0:02:55]}  Qxb2 {[%clk 0:01:48]} 12. Rd1 {[%clk 0:02:50]}  Nxb4 {[%clk 0:01:47]} 13. Be2 {[%clk 0:02:46]}  Bg4 {[%clk 0:00:40]} 14. Qb3 {[%clk 0:02:35]}  Nc2+ {[%clk 0:00:25]} 15. Kf1 {[%clk 0:02:32]}  Qxb3 {[%clk 0:00:16]} 16. axb3 {[%clk 0:02:32]}  Be6 {[%clk 0:00:17]} 17. Nc7 {[%clk 0:02:28]}  Bxb3 {[%clk 0:00:12]} 18. Nxa8 {[%clk 0:02:27]}  Rxa8 {[%clk 0:00:13]} 19. h4 {[%clk 0:02:17]}  a5 {[%clk 0:00:13]} 20. Rh3 {[%clk 0:02:17]}  a4 {[%clk 0:00:14]} 21. Rc3 {[%clk 0:02:14]}  g6 {[%clk 0:00:10]} 22. Nh3 {[%clk 0:02:07]}  Nb4 {[%clk 0:00:09]} 23. Rb1 {[%clk 0:02:07]}  Nd5 {[%clk 0:00:08]} 24. Rcc1 {[%clk 0:02:05]}  Kg7 {[%clk 0:00:05]} 25. g3 {[%clk 0:02:02]}  h6 {[%clk 0:00:05]} 26. Nf4 {[%clk 0:02:02]}  Nxf4 {[%clk 0:00:04]} 27. gxf4 {[%clk 0:02:03]}  Rb8 {[%clk 0:00:04]} 28. Bc4 {[%clk 0:02:02]}  Bxc4+ {[%clk 0:00:02]} 29. Rxc4 {[%clk 0:02:03]}  b5 {[%clk 0:00:03]} 30. Rxa4 {[%clk 0:02:03]} 1-0


[Site "https://www.chess.com"]

[Event "Titled Tuesday Blitz August 16 Early 2022"]
[White "Chigaev, Maksim"]
[Black "Omelja, Artem"]
[WhiteFideId "4108116"]
[BlackFideId "14119846"]
[WhiteElo "2487"]
[BlackElo "2382"]
[Result "1-0"]
[Round "01"]
[TimeControl "180+1"]
[Date "2022.08.16"]
[WhiteClock "0:00:08"]
[BlackClock "0:00:02"]

1. e4 {[%clk 0:02:58]}  c5 {[%clk 0:02:59]} 2. Nf3 {[%clk 0:02:55]}  e6 {[%clk 0:02:59]} 3. g3 {[%clk 0:02:54]}  Nc6 {[%clk 0:02:57]} 4. Bg2 {[%clk 0:02:54]}  Nf6 {[%clk 0:02:57]} 5. Qe2 {[%clk 0:02:54]}  d6 {[%clk 0:02:53]} 6. O-O {[%clk 0:02:53]}  Be7 {[%clk 0:02:45]} 7. c3 {[%clk 0:02:53]}  e5 {[%clk 0:02:41]} 8. h3 {[%clk 0:02:53]}  O-O {[%clk 0:02:30]} 9. Rd1 {[%clk 0:02:52]}  Qc7 {[%clk 0:02:28]} 10. d4 {[%clk 0:02:46]}  cxd4 {[%clk 0:02:23]} 11. cxd4 {[%clk 0:02:47]}  Nxd4 {[%clk 0:02:20]} 12. Nxd4 {[%clk 0:02:47]}  exd4 {[%clk 0:02:21]} 13. Na3 {[%clk 0:02:47]}  a6 {[%clk 0:02:19]} 14. Nc2 {[%clk 0:02:43]}  Re8 {[%clk 0:02:13]} 15. Nxd4 {[%clk 0:02:43]}  h6 {[%clk 0:02:10]} 16. Bf4 {[%clk 0:02:41]}  Bf8 {[%clk 0:02:09]} 17. Rac1 {[%clk 0:02:37]}  Qb6 {[%clk 0:02:06]} 18. b3 {[%clk 0:02:17]}  Bd7 {[%clk 0:01:58]} 19. Qd3 {[%clk 0:02:14]}  Rac8 {[%clk 0:01:47]} 20. Be3 {[%clk 0:02:07]}  Qa5 {[%clk 0:01:44]} 21. a4 {[%clk 0:02:04]}  b5 {[%clk 0:01:23]} 22. axb5 {[%clk 0:01:56]}  Bxb5 {[%clk 0:01:21]} 23. Nxb5 {[%clk 0:01:54]}  axb5 {[%clk 0:01:17]} 24. Bd4 {[%clk 0:01:45]}  Nd7 {[%clk 0:01:12]} 25. h4 {[%clk 0:01:12]}  Qb4 {[%clk 0:01:06]} 26. Rxc8 {[%clk 0:01:04]}  Rxc8 {[%clk 0:01:04]} 27. Bh3 {[%clk 0:01:05]}  Nc5 {[%clk 0:00:59]} 28. Bxc5 {[%clk 0:01:04]}  Rxc5 {[%clk 0:00:57]} 29. Bf1 {[%clk 0:00:58]}  Rc3 {[%clk 0:00:51]} 30. Qxb5 {[%clk 0:00:57]}  Qxb5 {[%clk 0:00:51]} 31. Bxb5 {[%clk 0:00:57]}  Rxb3 {[%clk 0:00:52]} 32. Bc4 {[%clk 0:00:57]}  Rb7 {[%clk 0:00:48]} 33. Bd5 {[%clk 0:00:53]}  Rc7 {[%clk 0:00:48]} 34. h5 {[%clk 0:00:52]}  Kh7 {[%clk 0:00:43]} 35. Rd3 {[%clk 0:00:46]}  g6 {[%clk 0:00:43]} 36. Rf3 {[%clk 0:00:46]}  Kg7 {[%clk 0:00:40]} 37. Kg2 {[%clk 0:00:46]}  gxh5 {[%clk 0:00:35]} 38. Kh3 {[%clk 0:00:43]}  Kg6 {[%clk 0:00:30]} 39. Rf5 {[%clk 0:00:34]}  Bg7 {[%clk 0:00:27]} 40. Rf3 {[%clk 0:00:31]}  Be5 {[%clk 0:00:24]} 41. Rb3 {[%clk 0:00:28]}  f5 {[%clk 0:00:17]} 42. f4 {[%clk 0:00:25]}  Bf6 {[%clk 0:00:17]} 43. Rb6 {[%clk 0:00:25]}  fxe4 {[%clk 0:00:04]} 44. Bxe4+ {[%clk 0:00:25]}  Kg7 {[%clk 0:00:04]} 45. Rxd6 {[%clk 0:00:25]}  Rc1 {[%clk 0:00:04]} 46. Rd7+ {[%clk 0:00:23]}  Kg8 {[%clk 0:00:01]} 47. Bh7+ {[%clk 0:00:20]}  Kh8 {[%clk 0:00:01]} 48. Bg6 {[%clk 0:00:20]}  h4 {[%clk 0:00:02]} 49. gxh4 {[%clk 0:00:19]}  Rh1+ {[%clk 0:00:02]} 50. Kg4 {[%clk 0:00:20]}  Bxh4 {[%clk 0:00:02]} 51. Kf5 {[%clk 0:00:21]}  Re1 {[%clk 0:00:02]} 52. Rh7+ {[%clk 0:00:20]}  Kg8 {[%clk 0:00:03]} 53. Rxh6 {[%clk 0:00:20]}  Be7 {[%clk 0:00:03]} 54. Rh7 {[%clk 0:00:20]}  Bf8 {[%clk 0:00:03]} 55. Rb7 {[%clk 0:00:20]}  Re7 {[%clk 0:00:03]} 56. Rb1 {[%clk 0:00:20]}  Re3 {[%clk 0:00:02]} 57. Rg1 {[%clk 0:00:20]}  Bg7 {[%clk 0:00:02]} 58. Rd1 {[%clk 0:00:18]}  Bf8 {[%clk 0:00:02]} 59. Rd5 {[%clk 0:00:18]}  Re7 {[%clk 0:00:02]} 60. Kg5 {[%clk 0:00:18]}  Re1 {[%clk 0:00:03]} 61. Rd7 {[%clk 0:00:17]}  Be7+ {[%clk 0:00:03]} 62. Kg4 {[%clk 0:00:14]}  Rg1+ {[%clk 0:00:03]} 63. Kf5 {[%clk 0:00:15]}  Bf8 {[%clk 0:00:03]} 64. Kf6 {[%clk 0:00:12]}  Re1 {[%clk 0:00:04]} 65. f5 {[%clk 0:00:12]}  Bh6 {[%clk 0:00:02]} 66. Bf7+ {[%clk 0:00:09]}  Kh8 {[%clk 0:00:02]} 67. Rd8+ {[%clk 0:00:08]} 1-0


[Site "https://www.chess.com"]

[Event "Titled Tuesday Blitz August 16 Early 2022"]
[White "Ciuffoletti, Paolo"]
[Black "Maiorov, Nikita"]
[WhiteFideId "807630"]
[BlackFideId "13501720"]
[WhiteElo "2143"]
[BlackElo "2409"]
[Result "0-1"]
[Round "01"]
[TimeControl "180+2"]
[Date "2022.08.18"]
[WhiteClock "0:00:00"]
[BlackClock "0:00:00"]

1. e4 {[%clk 0:00:00]}  e5 {[%clk 0:00:00]} 2. Nf3 {[%clk 0:00:00]}  Nc6 {[%clk 0:00:00]} 3. Bc4 {[%clk 0:00:00]}  Bc5 {[%clk 0:00:00]} 4. b4 {[%clk 0:00:00]}  Bxb4 {[%clk 0:00:00]} 5. c3 {[%clk 0:00:00]}  Be7 {[%clk 0:00:00]} 6. d4 {[%clk 0:00:00]}  Na5 {[%clk 0:00:00]} 7. Nxe5 {[%clk 0:00:00]}  Nxc4 {[%clk 0:00:00]} 8. Nxc4 {[%clk 0:00:00]}  d5 {[%clk 0:00:00]} 9. exd5 {[%clk 0:00:00]}  Qxd5 {[%clk 0:00:00]} 10. Ne3 {[%clk 0:00:00]}  Qa5 {[%clk 0:00:00]} 11. O-O {[%clk 0:00:00]}  Nf6 {[%clk 0:00:00]} 12. c4 {[%clk 0:00:00]}  O-O {[%clk 0:00:00]} 13. Bb2 {[%clk 0:00:00]}  Qg5 {[%clk 0:00:00]} 14. Qf3 {[%clk 0:00:00]}  c6 {[%clk 0:00:00]} 15. Nc3 {[%clk 0:00:00]}  Bd7 {[%clk 0:00:00]} 16. Rad1 {[%clk 0:00:00]}  Ng4 {[%clk 0:00:00]} 17. h3 {[%clk 0:00:00]}  Nxe3 {[%clk 0:00:00]} 18. fxe3 {[%clk 0:00:00]}  Qg6 {[%clk 0:00:00]} 19. Kh1 {[%clk 0:00:00]}  Rfe8 {[%clk 0:00:00]} 20. d5 {[%clk 0:00:00]}  Bb4 {[%clk 0:00:00]} 21. Ne2 {[%clk 0:00:00]}  f6 {[%clk 0:00:00]} 22. Nf4 {[%clk 0:00:00]}  Qe4 {[%clk 0:00:00]} 23. Bd4 {[%clk 0:00:00]}  Qxf3 {[%clk 0:00:00]} 24. Rxf3 {[%clk 0:00:00]}  Bf8 {[%clk 0:00:00]} 25. Nh5 {[%clk 0:00:00]}  Kh8 {[%clk 0:00:00]} 26. Re1 {[%clk 0:00:00]}  c5 {[%clk 0:00:00]} 27. Bc3 {[%clk 0:00:00]}  Re4 {[%clk 0:00:00]} 28. Rf4 {[%clk 0:00:00]}  Rae8 {[%clk 0:00:00]} 29. Rxe4 {[%clk 0:00:00]}  Rxe4 {[%clk 0:00:00]} 30. Bxf6 {[%clk 0:00:00]}  gxf6 {[%clk 0:00:00]} 31. Nxf6 {[%clk 0:00:00]}  Re7 {[%clk 0:00:00]} 32. Nxd7 {[%clk 0:00:00]}  Rxd7 {[%clk 0:00:00]} 33. e4 {[%clk 0:00:00]}  Bd6 {[%clk 0:00:00]} 34. e5 {[%clk 0:00:00]}  Re7 {[%clk 0:00:00]} 35. e6 {[%clk 0:00:00]}  Re8 {[%clk 0:00:00]} 36. Rf1 {[%clk 0:00:00]}  Rf8 {[%clk 0:00:00]} 37. Rf3 {[%clk 0:00:00]}  Rxf3 {[%clk 0:00:00]} 38. gxf3 {[%clk 0:00:00]}  Kg7 {[%clk 0:00:00]} 39. Kg2 {[%clk 0:00:00]}  Kf6 {[%clk 0:00:00]} 40. Kf2 {[%clk 0:00:00]}  Kf5 {[%clk 0:00:00]} 41. Ke3 {[%clk 0:00:00]}  Be7 {[%clk 0:00:00]} 42. a4 {[%clk 0:00:00]}  b6 {[%clk 0:00:00]} 43. Ke2 {[%clk 0:00:00]}  Kf4 {[%clk 0:00:00]} 44. Kf2 {[%clk 0:00:00]}  h5 {[%clk 0:00:00]} 45. Ke2 {[%clk 0:00:00]}  Kg3 {[%clk 0:00:00]} 46. Ke3 {[%clk 0:00:00]}  Kxh3 {[%clk 0:00:00]} 47. f4 {[%clk 0:00:00]}  Kg4 {[%clk 0:00:00]} 48. Ke4 {[%clk 0:00:00]}  h4 {[%clk 0:00:00]} 49. f5 {[%clk 0:00:00]}  Kg5 {[%clk 0:00:00]} 50. Kf3 {[%clk 0:00:00]}  Kxf5 {[%clk 0:00:00]} 51. Kg2 {[%clk 0:00:00]}  Ke5 {[%clk 0:00:00]} 52. Kh3 {[%clk 0:00:00]}  Kd4 {[%clk 0:00:00]} 53. d6 {[%clk 0:00:00]}  Bxd6 {[%clk 0:00:00]} 54. Kxh4 {[%clk 0:00:00]}  Kxc4 {[%clk 0:00:00]} 55. Kg5 {[%clk 0:00:00]}  Kd5 {[%clk 0:00:00]} 0-1


[Site "https://www.chess.com"]

[Event "Titled Tuesday Blitz August 16 Early 2022"]
[White "D`Arruda, Ricardo D."]
[Black "Leiva, Gianmarco"]
[WhiteFideId "100692"]
[BlackFideId "3804399"]
[WhiteElo "2271"]
[BlackElo "2323"]
[Result "1-0"]
[Round "01"]
[TimeControl "180+2"]
[Date "2022.08.18"]
[WhiteClock "0:00:00"]
[BlackClock "0:00:00"]

1. d4 {[%clk 0:00:00]}  Nf6 {[%clk 0:00:00]} 2. Nf3 {[%clk 0:00:00]}  e6 {[%clk 0:00:00]} 3. c4 {[%clk 0:00:00]}  d5 {[%clk 0:00:00]} 4. Nc3 {[%clk 0:00:00]}  a6 {[%clk 0:00:00]} 5. cxd5 {[%clk 0:00:00]}  exd5 {[%clk 0:00:00]} 6. Bf4 {[%clk 0:00:00]}  Bd6 {[%clk 0:00:00]} 7. Bxd6 {[%clk 0:00:00]}  Qxd6 {[%clk 0:00:00]} 8. e3 {[%clk 0:00:00]}  Bf5 {[%clk 0:00:00]} 9. Bd3 {[%clk 0:00:00]}  Bxd3 {[%clk 0:00:00]} 10. Qxd3 {[%clk 0:00:00]}  O-O {[%clk 0:00:00]} 11. O-O {[%clk 0:00:00]}  Nbd7 {[%clk 0:00:00]} 12. Rab1 {[%clk 0:00:00]}  a5 {[%clk 0:00:00]} 13. a3 {[%clk 0:00:00]}  a4 {[%clk 0:00:00]} 14. Qc2 {[%clk 0:00:00]}  Qa6 {[%clk 0:00:00]} 15. Ne5 {[%clk 0:00:00]}  c6 {[%clk 0:00:00]} 16. Nxd7 {[%clk 0:00:00]}  Nxd7 {[%clk 0:00:00]} 17. b4 {[%clk 0:00:00]}  b5 {[%clk 0:00:00]} 18. e4 {[%clk 0:00:00]}  Rac8 {[%clk 0:00:00]} 19. exd5 {[%clk 0:00:00]}  cxd5 {[%clk 0:00:00]} 20. Qd3 {[%clk 0:00:00]}  Rc4 {[%clk 0:00:00]} 21. Nxd5 {[%clk 0:00:00]}  Qd6 {[%clk 0:00:00]} 22. Ne3 {[%clk 0:00:00]}  Qxd4 {[%clk 0:00:00]} 23. Qxd4 {[%clk 0:00:00]}  Rxd4 {[%clk 0:00:00]} 24. Rfd1 {[%clk 0:00:00]}  Rxd1+ {[%clk 0:00:00]} 25. Rxd1 {[%clk 0:00:00]}  Nb6 {[%clk 0:00:00]} 26. Rd6 {[%clk 0:00:00]}  Rc8 {[%clk 0:00:00]} 27. Rxb6 {[%clk 0:00:00]}  g6 {[%clk 0:00:00]} 28. Rxb5 {[%clk 0:00:00]}  Rc3 {[%clk 0:00:00]} 29. Ra5 {[%clk 0:00:00]}  Rxa3 {[%clk 0:00:00]} 30. b5 {[%clk 0:00:00]}  Ra1+ {[%clk 0:00:00]} 31. Nf1 {[%clk 0:00:00]}  a3 {[%clk 0:00:00]} 32. b6 {[%clk 0:00:00]}  a2 {[%clk 0:00:00]} 33. b7 {[%clk 0:00:00]}  Rb1 {[%clk 0:00:00]} 34. Rxa2 {[%clk 0:00:00]}  Rxb7 {[%clk 0:00:00]} 35. g3 {[%clk 0:00:00]}  Kg7 {[%clk 0:00:00]} 36. Kg2 {[%clk 0:00:00]}  Re7 {[%clk 0:00:00]} 37. h4 {[%clk 0:00:00]}  Rb7 {[%clk 0:00:00]} 38. Ne3 {[%clk 0:00:00]}  Re7 {[%clk 0:00:00]} 39. Kf3 {[%clk 0:00:00]}  Rb7 {[%clk 0:00:00]} 40. Ra6 {[%clk 0:00:00]}  Rd7 {[%clk 0:00:00]} 41. Ke4 {[%clk 0:00:00]}  Rb7 {[%clk 0:00:00]} 42. Nd5 {[%clk 0:00:00]}  Rd7 {[%clk 0:00:00]} 43. Rc6 {[%clk 0:00:00]}  Rb7 {[%clk 0:00:00]} 44. Rc7 {[%clk 0:00:00]}  Rb1 {[%clk 0:00:00]} 45. f4 {[%clk 0:00:00]}  Re1+ {[%clk 0:00:00]} 46. Kf3 {[%clk 0:00:00]}  h5 {[%clk 0:00:00]} 47. Ne3 {[%clk 0:00:00]}  Kf6 {[%clk 0:00:00]} 48. Nc4 {[%clk 0:00:00]}  Rc1 {[%clk 0:00:00]} 49. Rc6+ {[%clk 0:00:00]}  Kf5 {[%clk 0:00:00]} 50. Ne5 {[%clk 0:00:00]}  Ra1 {[%clk 0:00:00]} 51. Nxf7 {[%clk 0:00:00]}  Ra3+ {[%clk 0:00:00]} 52. Kg2 {[%clk 0:00:00]}  g5 {[%clk 0:00:00]} 53. Nh6+ {[%clk 0:00:00]}  Ke4 {[%clk 0:00:00]} 54. Re6+ {[%clk 0:00:00]} 1-0


[Site "https://www.chess.com"]

[Event "Titled Tuesday Blitz August 16 Early 2022"]
[White "Danielyan, Vahe"]
[Black "Salem, A.R. Saleh"]
[WhiteFideId "13304828"]
[BlackFideId "9301348"]
[WhiteElo "2421"]
[BlackElo "2674"]
[Result "0-1"]
[Round "01"]
[TimeControl "180+1"]
[Date "2022.08.16"]
[WhiteClock "0:00:03"]
[BlackClock "0:00:37"]

1. e4 {[%clk 0:02:59]}  c5 {[%clk 0:02:52]} 2. Nc3 {[%clk 0:03:00]}  d6 {[%clk 0:02:52]} 3. d4 {[%clk 0:02:59]}  cxd4 {[%clk 0:02:52]} 4. Qxd4 {[%clk 0:03:00]}  Nc6 {[%clk 0:02:46]} 5. Qd2 {[%clk 0:03:00]}  a6 {[%clk 0:02:39]} 6. b3 {[%clk 0:02:54]}  b5 {[%clk 0:02:40]} 7. Bb2 {[%clk 0:02:54]}  Nf6 {[%clk 0:02:40]} 8. O-O-O {[%clk 0:02:50]}  e6 {[%clk 0:02:27]} 9. Re1 {[%clk 0:02:40]}  Qa5 {[%clk 0:02:23]} 10. h3 {[%clk 0:02:20]}  Be7 {[%clk 0:02:09]} 11. g4 {[%clk 0:02:19]}  O-O {[%clk 0:02:10]} 12. Bg2 {[%clk 0:02:20]}  Nd7 {[%clk 0:02:03]} 13. f4 {[%clk 0:02:17]}  b4 {[%clk 0:01:58]} 14. Na4 {[%clk 0:02:16]}  Nc5 {[%clk 0:01:54]} 15. Nxc5 {[%clk 0:02:16]}  dxc5 {[%clk 0:01:54]} 16. e5 {[%clk 0:02:11]}  Rd8 {[%clk 0:01:52]} 17. Qe2 {[%clk 0:01:41]}  Bb7 {[%clk 0:01:49]} 18. Kb1 {[%clk 0:01:35]}  c4 {[%clk 0:01:49]} 19. Nf3 {[%clk 0:01:26]}  c3 {[%clk 0:01:44]} 20. Bc1 {[%clk 0:01:24]}  Qb5 {[%clk 0:01:21]} 21. f5 {[%clk 0:01:20]}  Qxe2 {[%clk 0:01:21]} 22. Rxe2 {[%clk 0:01:21]}  a5 {[%clk 0:01:15]} 23. fxe6 {[%clk 0:01:20]}  fxe6 {[%clk 0:01:15]} 24. Ng5 {[%clk 0:01:21]}  Bxg5 {[%clk 0:01:02]} 25. Bxg5 {[%clk 0:01:21]}  Rd7 {[%clk 0:01:03]} 26. Ree1 {[%clk 0:01:18]}  h6 {[%clk 0:00:59]} 27. Bh4 {[%clk 0:01:16]}  Rd2 {[%clk 0:00:50]} 28. Be4 {[%clk 0:00:58]}  a4 {[%clk 0:00:50]} 29. bxa4 {[%clk 0:00:44]}  Rxa4 {[%clk 0:00:44]} 30. Rhf1 {[%clk 0:00:42]}  Nd4 {[%clk 0:00:41]} 31. Bg6 {[%clk 0:00:19]}  b3 {[%clk 0:00:39]} 32. Be7 {[%clk 0:00:06]}  bxc2+ {[%clk 0:00:36]} 33. Kc1 {[%clk 0:00:06]}  Nb3+ {[%clk 0:00:36]} 34. axb3 {[%clk 0:00:03]}  Ra1# {[%clk 0:00:37]} 0-1


[Site "https://www.chess.com"]